fUSD/lending_fUSD_20260111
["ID","MTS","AMOUNT","RATE_DAILY","PERIOD"]
[401368778,1768160441081,-500.0,0.00014644,2]
[401368779,1768160441107,-1589.41,0.00014646,2]
[401368780,1768160441132,-500.0,0.00014647,2]
[401368781,1768160441160,-218.70375454,0.00014647,2]
[401368782,1768160441188,-201.95541514,0.00014647,2]
[401368783,1768160441220,-500.0,0.00014647,2]
[401368784,1768160441247,-421.56963879,0.00014647,2]
[401368785,1768160441280,-26578.78261738,0.00014648,2]
[401368786,1768160510529,-267.76700523,0.00014548,2]
[401368787,1768160512599,-302.0,0.00014548,2]
[401368788,1768160514130,-166.37816147,0.00014548,2]
[401368789,1768160516093,-155.01716147,0.00014548,2]
[401368790,1768160518749,-108.83767183,0.00014548,2]
[401368791,1768160518772,-151.80254426,0.00014548,2]
[401368792,1768160520841,-128.76745574,0.00014548,2]
[401368793,1768160520862,-173.23254426,0.00014549,2]
[401368798,1768160523417,-190.35978391,0.00014549,2]
[401368799,1768160525033,-92.90736181,0.00014549,2]
[401368800,1768160525056,-300.0,0.00014645,2]
[401368801,1768160525079,-28.22805079,0.00014645,2]
[401368802,1768160528187,-271.77194921,0.00014645,2]
[401368803,1768160528210,-67.67144727,0.00014646,2]
[401368804,1768160530465,-166.64583723,0.00014646,2]
[401368805,1768160530491,-0.01416277,0.00014646,2]
[401368806,1768160531975,-389.05,0.00014646,2]
[401368807,1768160533483,-110.93583723,0.00014646,2]
[401368808,1768160533516,-352.91899607,0.00014646,2]
[401368809,1768160535589,-147.08100393,0.00014646,2]
[401368810,1768160535614,-118.6860013,0.00014646,2]
[401368811,1768160600391,-203.07753592,0.00014549,2]
[401368812,1768160600412,-56.86967679,0.00014549,2]
[401368813,1768160604252,-120.82316714,0.00014549,2]
[401368814,1768160604276,-179.17683286,0.00014647,2]
[401368816,1768160675383,-196.30696258,0.00014548,2]
[401368817,1768160676791,-233.56630985,0.00014548,2]
[401368818,1768160679865,-300.0,0.00014548,2]
[401368819,1768160697725,361.28,7.317e-05,2]
[401368820,1768160697932,361.28,7.687e-05,2]
[401368821,1768160698131,361.28,8.057e-05,2]
[401368822,1768160698335,361.28,8.427e-05,2]
[401368823,1768160698535,361.28,8.797e-05,2]
[401368824,1768160698729,361.28,9.167e-05,2]
[401368825,1768160698933,361.28,9.537e-05,2]
[401368826,1768160699148,361.28,9.907e-05,2]
[401368827,1768160699553,361.28,0.00010277,2]
[401368828,1768160699782,361.28,0.00010647,2]
[401368829,1768160699996,361.28,0.00011017,2]
[401368830,1768160700195,361.28,0.00011387,2]
[401368831,1768160700400,361.28,0.00011757,2]
[401368832,1768160700597,361.28,0.00012127,2]
[401368833,1768160700797,361.28,0.00012497,2]
[401368834,1768160700999,361.28,0.00012867,2]
[401368835,1768160701400,361.28,0.00013237,2]
[401368836,1768160701638,361.28,0.00013607,2]
[401368837,1768160702842,269.13,0.00027397,120]
[401368838,1768160705964,-165.14311535,0.00013977,2]
[401368839,1768160717698,-185.29573262,0.00013977,2]
[401368840,1768160839112,-10.84115203,0.00013977,2]
[401368841,1768160839132,-195.0,0.00014162,2]
[401368842,1768160839153,-361.28,0.00014347,2]
[401368843,1768160839173,-294.15914434,0.00014347,2]
[401368844,1768160881738,999.0,0.00014144,3]
[401368845,1768160960418,-315.53488248,0.00014084,2]
[401368846,1768160961788,-184.46511752,0.00014084,2]
[401368847,1768160961810,-115.53488248,0.00014097,2]
[401368848,1768160969100,-569.38,0.00014097,2]
[401368849,1768160969182,-604.08511752,0.00014097,2]
[401368850,1768160969202,-658.86,0.00014097,2]
[401368851,1768160969223,-686.95997851,0.00014347,2]
[401368852,1768160969244,-155.48123843,0.00014448,2]
[401368853,1768160969266,-417.66996392,0.00014448,2]
[401368854,1768160969293,-80.6891615,0.00014473,2]
[401368855,1768161003269,255.67,0.00027397,120]
[401368864,1768161031239,166.66,0.00013427,2]
[401368865,1768161031354,166.66,0.00013709,2]
[401368866,1768161031403,-1871.97,0.00014169,2]
[401368867,1768161031413,-500.0,0.00014374,2]
[401368868,1768161031423,-500.0,0.00014374,2]
[401368869,1768161031434,-500.0,0.00014374,2]
[401368870,1768161031444,-500.0,0.00014374,2]
[401368871,1768161031454,-482.9428224,0.00014374,2]
[401368872,1768161031464,-1200.0,0.00014472,2]
[401368873,1768161031474,-1537.47,0.00014473,2]
[401368874,1768161031484,-419.3108385,0.00014473,2]
[401368875,1768161031494,-500.0,0.00014473,2]
[401368876,1768161031503,-500.0,0.00014473,2]
[401368877,1768161031513,-500.0,0.00014473,2]
[401368878,1768161031523,-228.1845557,0.00014473,2]
[401368879,1768161031533,-500.0,0.00014473,2]
[401368880,1768161031542,-500.0,0.00014473,2]
[401368881,1768161031552,-500.0,0.00014473,2]
[401368882,1768161031561,-645.09874715,0.00014473,2]
[401368883,1768161031571,-227.77458077,0.00014473,2]
[401368884,1768161031580,-153.09262817,0.00014473,2]
[401368885,1768161031589,-16131.78178136,0.00014474,2]
[401368887,1768161031601,-912.64261718,0.00014474,2]
[401368889,1768161031612,-1118.76,0.00014474,2]
[401368892,1768161031635,-96776.89355745,0.00014474,2]
[401368894,1768161031646,-25848.74453343,0.00014474,2]
[401368897,1768161031657,-22995.73448585,0.00014474,2]
[401369071,1768161037491,-166.66,0.00013992,2]
[401369072,1768161037500,-166.66,0.00014275,2]
[401369073,1768161037510,-23015.00808573,0.00014474,2]
[401369074,1768161037521,-499.092,0.00014474,2]
[401369075,1768161037544,-1282.2401957,0.00014474,2]
[401369079,1768161037803,-260098.89678517,0.00014474,2]
[401369166,1768161038772,-23419.90821455,0.00014474,2]
[401369169,1768161038787,-12172.3352501,0.00014474,2]
[401369237,1768161039443,-573.674504,0.00014474,2]
[401369245,1768161039520,-270.04068993,0.00014474,2]
[401369248,1768161039532,-10045.45113752,0.00014474,2]
[401369251,1768161039558,-79025.83991162,0.00014474,2]
[401369254,1768161039571,-425812.95625041,0.00014474,2]
[401369255,1768161039581,-300.0,0.00014548,2]
[401369257,1768161039590,-270.12672757,0.00014548,2]
[401369259,1768161039600,-15657.70718706,0.00014549,2]
[401369261,1768161039610,-12203.52176079,0.00014549,2]
[401369263,1768161039619,-166.66,0.00014557,2]
[401369265,1768161039628,-150.0,0.00014572,2]
[401369267,1768161039639,-48143.6996117,0.00014574,2]
[401369270,1768161039654,-320.82316714,0.00014647,2]
[401369272,1768161039663,-500.0,0.00014647,2]
[401369273,1768161039673,-500.0,0.00014647,2]
[401369276,1768161039683,-500.0,0.00014647,2]
[401369278,1768161039692,-500.0,0.00014647,2]
[401369280,1768161039701,-500.0,0.00014647,2]
[401369282,1768161039711,-574.75695661,0.00014647,2]
[401369284,1768161039720,-500.0,0.00014647,2]
[401369286,1768161039729,-334.10877893,0.00014649,2]
[401369288,1768161039738,-1537.47,0.00014747,2]
[401369290,1768161039749,-500.0,0.00014749,2]
[401369292,1768161039759,-500.0,0.00014749,2]
[401369294,1768161039769,-500.0,0.00014749,2]
[401369296,1768161039779,-500.0,0.00014749,2]
[401369298,1768161039789,-500.0,0.00014749,2]
[401369300,1768161039798,-500.0,0.00014749,2]
[401369302,1768161039807,-194.41,0.00014749,2]
[401369304,1768161039816,-500.0,0.00014749,2]
[401369306,1768161039825,-500.0,0.00014749,2]
[401369308,1768161039835,-174.1373823,0.00014749,2]
[401369310,1768161039844,-356.46360209,0.00014749,2]
[401369311,1768161039853,-500.0,0.00014749,2]
[401369312,1768161039862,-511.45493644,0.00014749,2]
[401369313,1768161039870,-500.0,0.00014749,2]
[401369314,1768161039880,-500.0,0.00014749,2]
[401369315,1768161039889,-500.0,0.00014749,2]
[401369316,1768161039898,-500.0,0.00014749,2]
[401369317,1768161039906,-500.0,0.00014749,2]
[401369318,1768161039915,-500.0,0.00014749,2]
[401369319,1768161039924,-500.0,0.00014749,2]
[401369320,1768161039933,-500.0,0.00014749,2]
[401369321,1768161039941,-500.0,0.00014749,2]
[401369323,1768161039950,-500.0,0.00014749,2]
[401369325,1768161039959,-500.0,0.00014749,2]
[401369327,1768161039969,-500.0,0.00014749,2]
[401369329,1768161039979,-500.0,0.00014749,2]
[401369331,1768161039988,-500.0,0.00014749,2]
[401369333,1768161039997,-500.0,0.00014749,2]
[401369335,1768161040007,-386.65632401,0.00014749,2]
[401369337,1768161040016,-505.19604421,0.00014749,2]
[401369339,1768161040026,-500.0,0.00014749,2]
[401369341,1768161040036,-166.66,0.0001484,2]
[401369343,1768161040046,-1871.97,0.00014877,2]
[401369345,1768161040055,-19000.0,0.000149,5]
[401369347,1768161040064,-15657.70718705,0.00014921,2]
[401369349,1768161040073,-12203.52176078,0.00014921,2]
[401369351,1768161040084,-200.0,0.00014923,2]
[401369353,1768161040093,-259.59,0.00014927,2]
[401369355,1768161040102,-417.6699639,0.00014949,2]
[401369357,1768161040111,-323.8,0.00014953,2]
[401369359,1768161040120,-150.99,0.0001501,2]
[401369361,1768161040129,-9999.99,0.0001501,2]
[401369363,1768161040139,-299.99,0.0001501,2]
[401369366,1768161040149,-999.99,0.0001501,2]
[401369368,1768161040159,-1537.47,0.00015021,2]
[401369370,1768161040168,-500.0,0.00015023,2]
[401369372,1768161040177,-166.66,0.00015024,2]
[401369374,1768161040186,-1000.0,0.00015075,2]
[401369376,1768161040196,-334.10877891,0.00015191,2]
[401369378,1768161040206,-1000.0,0.00015285,2]
[401369380,1768161040217,-15657.70718705,0.00015294,2]
[401369382,1768161040226,-12203.52176078,0.00015294,2]
[401369384,1768161040235,-1537.47,0.00015295,2]
[401369385,1768161040244,-500.0,0.00015297,2]
[401369388,1768161040254,-500.0,0.00015319,2]
[401369390,1768161040263,-193.74886277,0.00015319,2]
[401369392,1768161040272,-936.49962306,0.00015365,2]
[401369393,1768161040281,-300.0,0.00015374,2]
[401369395,1768161040290,-1862.70122449,0.00015374,2]
[401369397,1768161040299,-195.0,0.00015374,2]
[401369400,1768161040309,-600.0,0.00015374,2]
[401369401,1768161040319,-250.0,0.00015374,2]
[401369403,1768161040327,-193.53877001,0.00015374,2]
[401369405,1768161040337,-300.0,0.00015374,2]
[401369407,1768161040346,-250.0,0.00015374,2]
[401369409,1768161040356,-500.0,0.00015425,2]
[401369411,1768161040364,-417.6699639,0.0001545,2]
[401369413,1768161040374,-203.27,0.00015456,2]
[401369415,1768161040383,-311.14395061,0.00015493,2]
[401369417,1768161040394,-166.66,0.00015519,2]
[401369419,1768161040405,-110605.17709486,0.00015519,2]
[401369421,1768161040414,-28016.0,0.00015534,2]
[401369424,1768161040425,-150.0,0.00015534,2]
[401369426,1768161040435,-179922.28846155,0.00015549,2]
[401369427,1768161040444,-254103.96996604,0.00015549,2]
[401369430,1768161040455,-328805.1855,0.00015549,2]
[401369432,1768161040464,-151.0,0.00015563,2]
[401369434,1768161040476,-151.0,0.00015563,2]
[401369436,1768161040485,-151.0,0.00015563,2]
[401369438,1768161040494,-151.0,0.00015563,2]
[401369440,1768161040504,-330.14190427,0.00015566,2]
[401369442,1768161040514,-1537.47,0.00015569,2]
[401369444,1768161040524,-500.0,0.00015571,2]
[401369446,1768161040534,-1871.97,0.00015585,2]
[401369448,1768161040545,-155.48123843,0.00015599,2]
[401369450,1768161040554,-1000.0,0.00015656,2]
[401369452,1768161040564,-15657.70718705,0.00015666,2]
[401369454,1768161040573,-12203.52176078,0.00015666,2]
[401369456,1768161040583,-1064.39897171,0.00015692,2]
[401369482,1768161040592,-255.0,0.00015694,2]
[401369495,1768161040914,-334.10877891,0.00015733,2]
[401369497,1768161040925,-259.59,0.00015756,2]
[401369499,1768161040935,-151.62282096,0.00015782,2]
[401369501,1768161040945,-38000.0,0.000158,5]
[401369503,1768161040955,-590.06318864,0.00015818,2]
[401369505,1768161040964,-1000.0,0.00015838,2]
[401369507,1768161040975,-1537.47,0.00015843,2]
[401369509,1768161040984,-158.55612686,0.00015845,2]
[401369511,1768161040993,-1289.0,0.00015859,2]
[401369513,1768161041003,-57000.0,0.000159,5]
[401369515,1768161041012,-1000.0,0.00015918,2]
[401369517,1768161041021,-1680.0,0.00015919,2]
[401369519,1768161041030,-420.0,0.00015929,2]
[401369521,1768161041038,-155.48123843,0.00015985,2]
[401369523,1768161041048,-166.66,0.00016015,2]
[401369525,1768161041057,-15657.70718705,0.00016038,2]
[401369527,1768161041066,-12203.52176078,0.00016038,2]
[401369529,1768161041075,-9999.99,0.00016116,2]
[401369531,1768161041084,-1537.47,0.00016117,2]
[401369533,1768161041093,-500.0,0.00016127,2]
[401369535,1768161041103,-150.0,0.000162,2]
[401369537,1768161041112,-150.0,0.000162,2]
[401369539,1768161041121,-150.0,0.000162,2]
[401369541,1768161041130,-473.27065485,0.000162,2]
[401369543,1768161041139,-150.0,0.000162,2]
[401369545,1768161041148,-150.0,0.000162,2]
[401369547,1768161041157,-150.0,0.000162,2]
[401369549,1768161041166,-150.0,0.000162,2]
[401369551,1768161041175,-150.0,0.000162,2]
[401369553,1768161041184,-150.0,0.000162,2]
[401369555,1768161041194,-150.0,0.000162,2]
[401369557,1768161041203,-150.0,0.000162,2]
[401369559,1768161041212,-150.0,0.000162,2]
[401369561,1768161041222,-150.0,0.000162,2]
[401369563,1768161041232,-150.0,0.000162,2]
[401369565,1768161041240,-473.27065485,0.00016218,2]
[401369567,1768161041250,-590.06318863,0.00016234,2]
[401369569,1768161041260,-473.27065485,0.00016236,2]
[401369571,1768161041269,-473.27065485,0.00016255,2]
[401369573,1768161041278,-473.27065485,0.00016273,2]
[401369575,1768161041287,-334.10877891,0.00016275,2]
[401369577,1768161041297,-473.27065485,0.00016291,2]
[401369579,1768161041307,-1871.97,0.00016294,2]
[401369581,1768161041315,-473.27065485,0.00016309,2]
[401369583,1768161041325,-473.27065485,0.00016327,2]
[401369585,1768161041334,-150.0,0.00016329,2]
[401369587,1768161041343,-473.27065485,0.00016345,2]
[401369589,1768161041352,-150.0,0.0001635,2]
[401369591,1768161041361,-150.0,0.0001635,2]
[401369593,1768161041370,-150.0,0.0001635,2]
[401369595,1768161041379,-473.27065485,0.00016364,2]
[401369597,1768161041388,-1000.0,0.00016368,2]
[401369599,1768161041401,-473.27065485,0.00016382,2]
[401369601,1768161041410,-1537.47,0.00016391,2]
[401369603,1768161041419,-473.27065485,0.000164,2]
[401369605,1768161041428,-150.0,0.000164,2]
[401369607,1768161041439,-415.1732756,0.00016409,2]
[401369609,1768161041449,-15657.70718705,0.00016411,2]
[401369611,1768161041459,-12203.52176078,0.00016411,2]
[401369613,1768161041469,-473.27065485,0.00016418,2]
[401369615,1768161041478,-150.0,0.00016425,2]
[401369617,1768161041488,-473.27065485,0.00016436,2]
[401369619,1768161041497,-265.78504267,0.00016438,2]
[401369621,1768161041506,-600.0,0.00016438,2]
[401369623,1768161041515,-800.0,0.00016438,2]
[401369625,1768161041525,-888.0,0.00016438,2]
[401369627,1768161041534,-188.46718757,0.00016438,2]
[401369629,1768161041543,-473.27065485,0.00016455,2]
[401369631,1768161041552,-1000.0,0.00016457,2]
[401369633,1768161041561,-150.0,0.00016457,2]
[401369635,1768161041571,-155.48123843,0.00016464,2]
[401369637,1768161041581,-473.27065485,0.00016473,2]
[401369639,1768161041590,-473.27065485,0.00016491,2]
[401369641,1768161041599,-150.0,0.000165,2]
[401369643,1768161041608,-150.0,0.000165,2]
[401369645,1768161041617,-150.0,0.000165,2]
[401369647,1768161041626,-150.0,0.000165,2]
[401369649,1768161041635,-473.27065485,0.00016509,2]
[401369652,1768161041646,-166.66,0.00016511,2]
[401369654,1768161041656,-1000.0,0.00016515,2]
[401369656,1768161041666,-473.27065485,0.00016527,2]
[401369658,1768161041674,-473.27065485,0.00016545,2]
[401369660,1768161041684,-150.0,0.0001656,2]
[401369662,1768161041693,-473.27065485,0.00016564,2]
[401369664,1768161041702,-473.27065485,0.00016582,2]
[401369666,1768161041712,-259.59,0.00016585,2]
[401369668,1768161041721,-150.0,0.00016586,2]
[401369670,1768161041729,-473.27065485,0.000166,2]
[401369672,1768161041738,-150.0,0.000166,2]
[401369674,1768161041746,-473.27065485,0.00016618,2]
[401369676,1768161041756,-473.27065485,0.00016636,2]
[401369678,1768161041765,-150.0,0.0001665,2]
[401369680,1768161041775,-150.0,0.0001665,2]
[401369682,1768161041784,-150.0,0.0001665,2]
[401369684,1768161041793,-150.0,0.0001665,2]
[401369686,1768161041802,-590.06318863,0.00016651,2]
[401369688,1768161041813,-473.27065485,0.00016655,2]
[401369690,1768161041822,-1537.47,0.00016665,2]
[401369692,1768161041831,-473.27065485,0.00016673,2]
[401369694,1768161041842,-473.27065485,0.00016691,2]
[401369696,1768161041851,-1413.99,0.000167,2]
[401369698,1768161041860,-473.27065485,0.00016709,2]
[401369700,1768161041869,-159.6,0.00016712,2]
[401369702,1768161041878,-150.0,0.00016714,2]
[401369704,1768161041889,-473.27065485,0.00016727,2]
[401369706,1768161041898,-330.14190427,0.00016733,2]
[401369708,1768161041907,-473.27065485,0.00016745,2]
[401369709,1768161041916,-473.27065485,0.00016764,2]
[401369710,1768161041926,-473.27065485,0.00016782,2]
[401369711,1768161041935,-15657.70718705,0.00016783,2]
[401369712,1768161041945,-12203.52176078,0.00016783,2]
[401369713,1768161041955,-500.0,0.00016799,2]
[401369714,1768161041964,-150.0,0.000168,2]
[401369715,1768161041973,-150.0,0.000168,2]
[401369716,1768161041982,-150.0,0.000168,2]
[401369717,1768161041991,-473.27065485,0.000168,2]
[401369719,1768161042000,-150.0,0.000168,2]
[401369721,1768161042010,-150.0,0.000168,2]
[401369723,1768161042020,-150.0,0.000168,2]
[401369725,1768161042029,-203.27,0.00016804,2]
[401369727,1768161042039,-334.10877891,0.00016816,2]
[401369729,1768161042048,-473.27065485,0.00016818,2]
[401369731,1768161042057,-473.27065485,0.00016836,2]
[401369733,1768161042067,-150.0,0.00016843,2]
[401369735,1768161042076,-473.27065485,0.00016855,2]
[401369737,1768161042086,-473.27065485,0.00016873,2]
[401369739,1768161042095,-150.0,0.00016875,2]
[401369741,1768161042105,-578.20924308,0.00016887,2]
[401369743,1768161042114,-553.64373807,0.00016887,2]
[401369745,1768161042124,-500.0,0.00016887,2]
[401369747,1768161042133,-651.90523038,0.00016887,2]
[401369749,1768161042142,-500.0,0.00016887,2]
[401369751,1768161042151,-500.0,0.00016887,2]
[401369753,1768161042160,-500.0,0.00016887,2]
[401369755,1768161042170,-238.92822807,0.00016887,2]
[401369757,1768161042179,-260.89005731,0.00016887,2]
[401369759,1768161042187,-250.0,0.00016887,2]
[401369761,1768161042196,-250.0,0.00016887,2]
[401369762,1768161042205,-322.6107,0.00016887,2]
[401369765,1768161042215,-250.0,0.00016887,2]
[401369769,1768161042225,-998.0,0.00016887,2]
[401369772,1768161042234,-250.0,0.00016887,2]
[401369775,1768161042243,-250.0,0.00016887,2]
[401369779,1768161042252,-250.0,0.00016887,2]
[401369780,1768161042261,-1000.0,0.00016887,2]
[401369782,1768161042270,-250.0,0.00016887,2]
[401369784,1768161042279,-250.0,0.00016887,2]
[401369787,1768161042290,-1000.0,0.00016887,2]
[401369789,1768161042299,-250.0,0.00016887,2]
[401369790,1768161042309,-1000.0,0.00016887,2]
[401369793,1768161042319,-250.0,0.00016887,2]
[401369794,1768161042327,-1000.0,0.00016887,2]
[401369796,1768161042337,-250.0,0.00016887,2]
[401369798,1768161042346,-1000.0,0.00016887,2]
[401369800,1768161042355,-250.0,0.00016887,2]
[401369802,1768161042364,-1000.0,0.00016887,2]
[401369804,1768161042374,-620.0,0.00016887,2]
[401369806,1768161042383,-1000.0,0.00016887,2]
[401369808,1768161042392,-1000.0,0.00016887,2]
[401369811,1768161042405,-1000.0,0.00016887,2]
[401369813,1768161042414,-1000.0,0.00016887,2]
[401369815,1768161042423,-1000.0,0.00016887,2]
[401369817,1768161042432,-1000.0,0.00016887,2]
[401369819,1768161042443,-250.0,0.00016887,2]
[401369821,1768161042452,-250.0,0.00016887,2]
[401369822,1768161042461,-473.27065485,0.00016891,2]
[401369824,1768161042472,-167.2048683,0.00016899,6]
[401369826,1768161042481,-500.0,0.00016899,6]
[401369828,1768161042491,-150.0,0.00016899,6]
[401369830,1768161042500,-150.0,0.00016899,6]
[401369832,1768161042510,-150.0,0.00016899,6]
[401369834,1768161042519,-500.0,0.00016899,6]
[401369836,1768161042529,-150.0,0.00016899,6]
[401369838,1768161042538,-150.0,0.00016899,6]
[401369840,1768161042548,-500.0,0.00016899,6]
[401369842,1768161042557,-433.0,0.00016904,2]
[401369844,1768161042565,-473.27065485,0.00016909,2]
[401369846,1768161042575,-150.0,0.0001692,2]
[401369848,1768161042584,-473.27065485,0.00016927,2]
[401369850,1768161042593,-1537.47,0.00016939,2]
[401369852,1768161042603,-155.48123843,0.00016943,2]
[401369854,1768161042612,-473.27065485,0.00016945,2]
[401369857,1768161042622,-150.0,0.0001695,2]
[401369858,1768161042631,-150.0,0.0001695,2]
[401369860,1768161042641,-150.0,0.0001695,2]
[401369863,1768161042650,-500.0,0.00016954,6]
[401369865,1768161042660,-230.9970252,0.00016954,6]
[401369867,1768161042669,-162.50796385,0.00016954,6]
[401369869,1768161042679,-150.0,0.00016954,6]
[401369871,1768161042688,-500.0,0.00016954,6]
[401369872,1768161042698,-500.0,0.00016954,6]
[401369875,1768161042708,-1000.0,0.0001696,2]
[401369877,1768161042717,-473.27065485,0.00016964,2]
[401369878,1768161042726,-150.0,0.00016971,2]
[401369880,1768161042735,-473.27065485,0.00016982,2]
[401369882,1768161042744,-200.01,0.00016986,2]
[401369884,1768161042753,-50395.02,0.00016986,2]
[401369886,1768161042763,-473.27065485,0.00017,2]
[401369887,1768161042772,-150.0,0.00017,2]
[401369889,1768161042781,-250.0,0.00017,2]
[401369891,1768161042790,-1871.97,0.00017002,2]
[401369893,1768161042799,-166.66,0.00017007,2]
[401369895,1768161042808,-500.0,0.00017009,6]
[401369897,1768161042817,-434.43767644,0.00017009,6]
[401369899,1768161042826,-500.0,0.00017009,6]
[401369901,1768161042835,-473.27065485,0.00017018,2]
[401369903,1768161042844,-473.27065485,0.00017036,2]
[401369904,1768161042853,-162.0,0.0001704,2]
[401369906,1768161042862,-473.27065485,0.00017055,2]
[401369908,1768161042871,-500.0,0.00017063,6]
[401369910,1768161042882,-500.0,0.00017063,6]
[401369912,1768161042891,-590.06318863,0.00017067,2]
[401369914,1768161042901,-500.0,0.00017073,2]
[401369916,1768161042910,-500.0,0.00017073,2]
[401369918,1768161042920,-632.9385196,0.00017073,2]
[401369920,1768161042929,-500.0,0.00017073,2]
[401369922,1768161042939,-500.0,0.00017073,2]
[401369924,1768161042948,-500.0,0.00017073,2]
[401369926,1768161042956,-500.0,0.00017073,2]
[401369928,1768161042966,-500.0,0.00017073,2]
[401369930,1768161042975,-500.0,0.00017073,2]
[401369932,1768161042983,-500.0,0.00017073,2]
[401369934,1768161042991,-500.0,0.00017073,2]
[401369936,1768161043001,-500.0,0.00017073,2]
[401369938,1768161043009,-439.76863979,0.00017073,2]
[401369940,1768161043018,-500.0,0.00017073,2]
[401369941,1768161043029,-500.0,0.00017073,2]
[401369943,1768161043038,-368.2931148,0.00017073,2]
[401369945,1768161043047,-500.0,0.00017073,2]
[401369947,1768161043057,-646.79718152,0.00017073,2]
[401369949,1768161043066,-500.0,0.00017073,2]
[401369951,1768161043075,-500.0,0.00017073,2]
[401369953,1768161043085,-500.0,0.00017073,2]
[401369955,1768161043095,-500.0,0.00017073,2]
[401369957,1768161043105,-500.0,0.00017073,2]
[401369959,1768161043114,-500.99700202,0.00017073,2]
[401369961,1768161043124,-500.0,0.00017073,2]
[401369963,1768161043134,-500.0,0.00017073,2]
[401369965,1768161043143,-500.45639995,0.00017073,2]
[401369967,1768161043153,-500.0,0.00017073,2]
[401369969,1768161043163,-500.0,0.00017073,2]
[401369971,1768161043172,-500.0,0.00017073,2]
[401369973,1768161043182,-500.0,0.00017073,2]
[401369975,1768161043191,-473.27065485,0.00017073,2]
[401369977,1768161043200,-473.27065485,0.00017091,2]
[401369979,1768161043210,-165.37281025,0.00017099,2]
[401369981,1768161043219,-150.0,0.000171,2]
[401369983,1768161043229,-150.0,0.000171,2]
[401369985,1768161043238,-150.0,0.000171,2]
[401369987,1768161043248,-150.0,0.000171,2]
[401369989,1768161043257,-150.0,0.000171,2]
[401369991,1768161043266,-150.0,0.000171,2]
[401369993,1768161043276,-150.0,0.000171,2]
[401369995,1768161043286,-150.0,0.000171,2]
[401369997,1768161043295,-1089.8409,0.000171,2]
[401369999,1768161043305,-473.27065485,0.00017109,2]
[401370001,1768161043315,-1000.0,0.00017112,2]
[401370003,1768161043325,-500.0,0.00017118,6]
[401370005,1768161043334,-473.27065485,0.00017127,2]
[401370007,1768161043344,-473.27065485,0.00017145,2]
[401370009,1768161043354,-15657.70718705,0.00017155,2]
[401370011,1768161043363,-12203.52176078,0.00017155,2]
[401370013,1768161043372,-473.27065485,0.00017164,2]
[401370015,1768161043382,-3798.0,0.00017169,2]
[401370017,1768161043391,-203.27,0.0001717,2]
[401370018,1768161043405,-500.0,0.00017173,6]
[401370020,1768161043414,-473.27065485,0.00017182,2]
[401370023,1768161043424,-473.27065485,0.000172,2]
[401370025,1768161043434,-150.0,0.000172,2]
[401370027,1768161043445,-1537.47,0.00017213,2]
[401370029,1768161043455,-473.27065485,0.00017218,2]
[401370031,1768161043464,-500.0,0.00017228,6]
[401370033,1768161043476,-150.0,0.00017229,2]
[401370035,1768161043487,-473.27065485,0.00017236,2]
[401370037,1768161043497,-150.0,0.0001725,2]
[401370038,1768161043506,-150.0,0.0001725,2]
[401370040,1768161043515,-150.0,0.0001725,2]
[401370042,1768161043524,-473.27065485,0.00017255,2]
[401370044,1768161043534,-473.27065485,0.00017273,2]
[401370046,1768161043543,-150.0,0.0001728,2]